fUSD/lending_fUSD_20260121
["ID","MTS","AMOUNT","RATE_DAILY","PERIOD"]
[402945507,1769007040900,-500.0,0.00016828,2]
[402945508,1769007040909,-500.0,0.00016828,2]
[402945509,1769007040919,-341.67884985,0.00016828,2]
[402945510,1769007040933,-500.0,0.00016828,2]
[402945511,1769007040942,-500.0,0.00016828,2]
[402945512,1769007040952,-500.0,0.00016829,2]
[402945513,1769007040961,-500.0,0.00016829,2]
[402945514,1769007040970,-989.0,0.00016834,2]
[402945515,1769007040980,-234.04112718,0.00016838,2]
[402945516,1769007040990,-500.0,0.00016838,2]
[402945517,1769007041000,-500.0,0.00016838,2]
[402945518,1769007041009,-500.0,0.00016838,2]
[402945519,1769007041020,-500.0,0.00016838,2]
[402945520,1769007041031,-500.0,0.00016838,2]
[402945521,1769007041041,-500.0,0.00016838,2]
[402945522,1769007041050,-500.0,0.00016838,2]
[402945523,1769007041059,-500.0,0.00016838,2]
[402945524,1769007041068,-500.0,0.00016838,2]
[402945525,1769007041078,-500.0,0.00016838,2]
[402945526,1769007041088,-500.0,0.00016838,2]
[402945527,1769007041097,-500.0,0.00016838,2]
[402945528,1769007041106,-500.0,0.00016838,2]
[402945529,1769007041115,-500.0,0.00016838,2]
[402945530,1769007041124,-500.0,0.00016838,2]
[402945531,1769007041133,-500.0,0.00016838,2]
[402945532,1769007041142,-500.0,0.00016838,2]
[402945533,1769007041151,-178.19923715,0.00016838,2]
[402945534,1769007041160,-500.0,0.00016838,2]
[402945535,1769007041170,-500.0,0.00016838,2]
[402945536,1769007041179,-500.0,0.00016838,2]
[402945537,1769007041189,-500.0,0.00016838,2]
[402945538,1769007041198,-249.84105612,0.00016838,2]
[402945539,1769007041207,-519.05995183,0.00016838,2]
[402945540,1769007041216,-500.0,0.00016838,2]
[402945541,1769007041225,-500.0,0.00016838,2]
[402945542,1769007041234,-500.0,0.00016838,2]
[402945543,1769007041244,-500.0,0.00016838,2]
[402945544,1769007041253,-500.0,0.00016838,2]
[402945545,1769007041262,-527.68903203,0.00016838,2]
[402945546,1769007041271,-500.0,0.00016838,2]
[402945547,1769007041280,-500.0,0.00016838,2]
[402945548,1769007041290,-500.0,0.00016838,2]
[402945549,1769007041299,-500.0,0.00016838,2]
[402945550,1769007041308,-500.0,0.00016838,2]
[402945551,1769007041317,-500.0,0.00016838,2]
[402945552,1769007041327,-327.49083589,0.00016838,2]
[402945554,1769007041337,-500.0,0.00016838,2]
[402945556,1769007041346,-500.0,0.00016838,2]
[402945558,1769007041355,-500.0,0.00016838,2]
[402945560,1769007041364,-500.0,0.00016838,2]
[402945561,1769007041373,-500.0,0.00016838,2]
[402945562,1769007041382,-500.0,0.00016838,2]
[402945563,1769007041391,-500.0,0.00016838,2]
[402945564,1769007041400,-500.0,0.00016838,2]
[402945565,1769007041410,-500.0,0.00016838,2]
[402945566,1769007041419,-500.0,0.00016838,2]
[402945567,1769007041428,-500.0,0.00016838,2]
[402945568,1769007041437,-500.0,0.00016838,2]
[402945569,1769007041447,-500.0,0.00016838,2]
[402945570,1769007041455,-514.94793868,0.00016838,2]
[402945571,1769007041464,-575.71488184,0.00016838,2]
[402945572,1769007041474,-780.9055967,0.00016847,2]
[402945573,1769007041482,-22761.81188579,0.00016851,2]
[402945574,1769007041491,-1993.0,0.00016856,2]
[402945575,1769007041500,-865.0,0.00016867,2]
[402945576,1769007041509,-1214.78,0.00016876,2]
[402945577,1769007041518,-500.0,0.00016876,2]
[402945578,1769007041527,-151.0,0.00016878,2]
[402945579,1769007041536,-151.0,0.0001688,2]
[402945580,1769007041545,-152.17,0.00016882,2]
[402945581,1769007041554,-151.0,0.00016882,2]
[402945582,1769007041563,-151.0,0.00016882,2]
[402945583,1769007041572,-151.0,0.00016882,2]
[402945584,1769007041583,-500.0,0.00016883,2]
[402945585,1769007041592,-500.0,0.00016883,2]
[402945586,1769007041601,-151.0,0.00016888,2]
[402945587,1769007041611,-251.0,0.00016889,2]
[402945588,1769007041620,-151.0,0.00016889,2]
[402945589,1769007041629,-500.0,0.00016899,2]
[402945590,1769007041638,-150.0,0.00016899,2]
[402945591,1769007041647,-150.0,0.00016899,2]
[402945592,1769007041656,-500.0,0.00016899,2]
[402945593,1769007041665,-500.0,0.00016899,2]
[402945594,1769007041674,-500.0,0.00016899,2]
[402945595,1769007041684,-1681.0,0.000169,2]
[402945596,1769007041693,-776.0,0.00016922,2]
[402945597,1769007041703,-500.0,0.00016938,2]
[402945598,1769007041713,-500.0,0.00016938,2]
[402945599,1769007041723,-500.0,0.00016954,2]
[402945600,1769007041733,-150.0,0.00016954,2]
[402945601,1769007041743,-500.0,0.00016954,2]
[402945602,1769007041754,-500.0,0.00016954,2]
[402945603,1769007041764,-500.0,0.00016954,2]
[402945604,1769007041776,-1679.0,0.00016956,2]
[402945605,1769007041786,-256.73455371,0.00016979,2]
[402945606,1769007041796,-452.91018446,0.00016979,2]
[402945607,1769007041805,-677.52654918,0.00016979,2]
[402945608,1769007041817,-916.7103,0.00016979,2]
[402945609,1769007041828,-2263.0,0.00016983,2]
[402945610,1769007041837,-500.0,0.00016993,2]
[402945611,1769007041846,-500.0,0.00016993,2]
[402945612,1769007041857,-500.0,0.00016996,2]
[402945613,1769007041866,-500.0,0.00016996,2]
[402945614,1769007041875,-500.0,0.00016996,2]
[402945615,1769007041884,-250.0,0.00017,2]
[402945616,1769007041894,-181.7856256,0.00017001,2]
[402945617,1769007041903,-22761.81188579,0.00017001,2]
[402945618,1769007041913,-500.0,0.00017009,2]
[402945619,1769007041922,-205.87876924,0.00017009,2]
[402945620,1769007041931,-500.0,0.00017009,2]
[402945621,1769007041940,-500.0,0.00017009,2]
[402945622,1769007041949,-500.0,0.00017009,2]
[402945623,1769007041959,-500.0,0.00017043,2]
[402945624,1769007041969,-500.0,0.00017043,2]
[402945625,1769007041978,-510.51181022,0.00017043,2]
[402945626,1769007041987,-500.0,0.00017043,2]
[402945627,1769007041998,-322.6107,0.00017044,2]
[402945628,1769007042012,-2000.0,0.00017044,2]
[402945629,1769007042021,-250.05741751,0.00017044,2]
[402945630,1769007042030,-174.61919141,0.00017044,2]
[402945631,1769007042040,-2000.0,0.00017044,2]
[402945632,1769007042049,-2000.0,0.00017044,2]
[402945633,1769007042058,-2000.0,0.00017044,2]
[402945634,1769007042067,-533.88981491,0.00017044,2]
[402945635,1769007042078,-2000.0,0.00017044,2]
[402945636,1769007042087,-2000.0,0.00017044,2]
[402945637,1769007042095,-2000.0,0.00017044,2]
[402945638,1769007042104,-2000.0,0.00017044,2]
[402945639,1769007042113,-2000.0,0.00017044,2]
[402945640,1769007042122,-2000.0,0.00017044,2]
[402945641,1769007042131,-2000.0,0.00017044,2]
[402945642,1769007042140,-194.72792766,0.00017044,2]
[402945643,1769007042149,-407.91912409,0.00017044,2]
[402945644,1769007042159,-250.0,0.00017044,2]
[402945645,1769007042168,-250.0,0.00017044,2]
[402945646,1769007042177,-250.0,0.00017044,2]
[402945647,1769007042188,-250.0,0.00017044,2]
[402945648,1769007042197,-578.20924308,0.00017044,2]
[402945649,1769007042206,-250.0,0.00017044,2]
[402945650,1769007042215,-250.0,0.00017044,2]
[402945651,1769007042224,-250.0,0.00017044,2]
[402945652,1769007042233,-250.0,0.00017044,2]
[402945653,1769007042242,-250.0,0.00017044,2]
[402945654,1769007042251,-250.0,0.00017044,2]
[402945655,1769007042260,-250.0,0.00017044,2]
[402945656,1769007042269,-250.0,0.00017044,2]
[402945657,1769007042278,-250.0,0.00017044,2]
[402945658,1769007042287,-250.0,0.00017044,2]
[402945659,1769007042296,-250.0,0.00017044,2]
[402945660,1769007042305,-250.0,0.00017044,2]
[402945661,1769007042314,-250.0,0.00017044,2]
[402945662,1769007042323,-250.0,0.00017044,2]
[402945663,1769007042335,-250.0,0.00017044,2]
[402945664,1769007042344,-250.0,0.00017044,2]
[402945665,1769007042353,-250.0,0.00017044,2]
[402945666,1769007042362,-250.0,0.00017044,2]
[402945667,1769007042371,-250.0,0.00017044,2]
[402945668,1769007042381,-250.0,0.00017044,2]
[402945669,1769007042391,-250.0,0.00017044,2]
[402945670,1769007042400,-250.0,0.00017044,2]
[402945671,1769007042409,-250.0,0.00017044,2]
[402945672,1769007042418,-250.0,0.00017044,2]
[402945673,1769007042427,-250.0,0.00017044,2]
[402945674,1769007042436,-2000.0,0.00017044,2]
[402945675,1769007042445,-250.0,0.00017044,2]
[402945676,1769007042454,-376.37345362,0.00017044,2]
[402945677,1769007042463,-2000.0,0.00017044,2]
[402945678,1769007042472,-250.0,0.00017044,2]
[402945679,1769007042481,-2000.0,0.00017044,2]
[402945680,1769007042490,-250.0,0.00017044,2]
[402945681,1769007042499,-2000.0,0.00017044,2]
[402945682,1769007042508,-250.0,0.00017044,2]
[402945683,1769007042518,-2000.0,0.00017044,2]
[402945684,1769007042527,-303.89373247,0.00017044,2]
[402945685,1769007042536,-2000.0,0.00017044,2]
[402945686,1769007042545,-2000.0,0.00017044,2]
[402945687,1769007042554,-2000.0,0.00017044,2]
[402945688,1769007042564,-1000.0,0.00017044,2]
[402945689,1769007042577,-2000.0,0.00017044,2]
[402945690,1769007042587,-1000.0,0.00017044,2]
[402945691,1769007042596,-2000.0,0.00017044,2]
[402945692,1769007042606,-1000.0,0.00017044,2]
[402945693,1769007042615,-2000.0,0.00017044,2]
[402945694,1769007042624,-500.0,0.00017044,2]
[402945695,1769007042632,-1000.0,0.00017044,2]
[402945696,1769007042642,-2000.0,0.00017044,2]
[402945697,1769007042651,-500.0,0.00017044,2]
[402945698,1769007042661,-250.0,0.00017044,2]
[402945699,1769007042670,-1000.0,0.00017044,2]
[402945700,1769007042679,-2000.0,0.00017044,2]
[402945701,1769007042688,-500.0,0.00017044,2]
[402945702,1769007042696,-250.0,0.00017044,2]
[402945703,1769007042705,-1000.0,0.00017044,2]
[402945704,1769007042714,-500.0,0.00017044,2]
[402945705,1769007042723,-250.0,0.00017044,2]
[402945706,1769007042732,-1000.0,0.00017044,2]
[402945707,1769007042741,-500.0,0.00017044,2]
[402945708,1769007042750,-250.0,0.00017044,2]
[402945709,1769007042760,-1000.0,0.00017044,2]
[402945710,1769007042770,-500.0,0.00017044,2]
[402945711,1769007042784,-250.0,0.00017044,2]
[402945712,1769007042796,-1000.0,0.00017044,2]
[402945713,1769007042806,-500.0,0.00017044,2]
[402945714,1769007042817,-250.0,0.00017044,2]
[402945715,1769007042830,-1000.0,0.00017044,2]
[402945716,1769007042839,-500.0,0.00017044,2]
[402945717,1769007042850,-250.0,0.00017044,2]
[402945718,1769007042860,-1000.0,0.00017044,2]
[402945719,1769007042869,-500.0,0.00017044,2]
[402945720,1769007042879,-250.0,0.00017044,2]
[402945721,1769007042889,-500.0,0.00017044,2]
[402945722,1769007042899,-500.0,0.00017044,2]
[402945723,1769007042909,-250.0,0.00017044,2]
[402945724,1769007042919,-500.0,0.00017044,2]
[402945725,1769007042929,-250.0,0.00017044,2]
[402945726,1769007042938,-500.0,0.00017044,2]
[402945727,1769007042947,-250.0,0.00017044,2]
[402945728,1769007042957,-151.0,0.00017044,2]
[402945729,1769007042966,-500.0,0.00017044,2]
[402945730,1769007042976,-250.0,0.00017044,2]
[402945731,1769007042985,-151.0,0.00017044,2]
[402945732,1769007042995,-250.0,0.00017044,2]
[402945733,1769007043004,-151.0,0.00017044,2]
[402945735,1769007043014,-500.0,0.00017044,2]
[402945736,1769007043023,-151.0,0.00017044,2]
[402945737,1769007043033,-500.0,0.00017044,2]
[402945738,1769007043042,-151.0,0.00017044,2]
[402945740,1769007043052,-500.0,0.00017044,2]
[402945742,1769007043061,-151.0,0.00017044,2]
[402945743,1769007043070,-500.0,0.00017044,2]
[402945745,1769007043082,-151.0,0.00017044,2]
[402945747,1769007043091,-500.0,0.00017044,2]
[402945748,1769007043100,-151.0,0.00017044,2]
[402945749,1769007043109,-250.0,0.00017044,2]
[402945750,1769007043118,-151.0,0.00017044,2]
[402945751,1769007043127,-151.0,0.00017044,2]
[402945752,1769007043136,-250.0,0.00017044,2]
[402945753,1769007043145,-500.0,0.00017044,2]
[402945754,1769007043154,-500.0,0.00017044,2]
[402945755,1769007043163,-151.0,0.00017044,2]
[402945756,1769007043172,-250.0,0.00017044,2]
[402945757,1769007043181,-151.0,0.00017044,2]
[402945758,1769007043190,-500.0,0.00017044,2]
[402945759,1769007043199,-151.0,0.00017044,2]
[402945760,1769007043209,-500.0,0.00017044,2]
[402945761,1769007043218,-151.0,0.00017044,2]
[402945762,1769007043227,-500.0,0.00017044,2]
[402945763,1769007043236,-500.0,0.00017044,2]
[402945764,1769007043245,-500.0,0.00017044,2]
[402945765,1769007043254,-500.0,0.00017044,2]
[402945766,1769007043263,-3002.70085788,0.00017044,2]
[402945767,1769007043272,-500.0,0.00017048,2]
[402945768,1769007043282,-500.0,0.00017048,2]
[402945769,1769007043291,-500.0,0.00017063,2]
[402945770,1769007043300,-500.0,0.00017063,2]
[402945771,1769007043309,-500.0,0.00017063,2]
[402945772,1769007043318,-500.0,0.00017063,2]
[402945773,1769007043329,-8635.3274,0.00017073,2]
[402945774,1769007043338,-200.6,0.00017087,2]
[402945775,1769007043347,-500.0,0.00017103,2]
[402945776,1769007043357,-500.0,0.00017103,2]
[402945778,1769007043366,-500.00000017,0.00017118,2]
[402945779,1769007043375,-500.0,0.00017118,2]
[402945780,1769007043384,-500.0,0.00017118,2]
[402945781,1769007043394,-271.24421117,0.00017118,2]
[402945782,1769007043403,-1214.78,0.0001715,2]
[402945783,1769007043412,-500.0,0.0001715,2]
[402945784,1769007043420,-22761.81188579,0.00017151,2]
[402945785,1769007043429,-500.0,0.00017157,2]
[402945786,1769007043438,-500.0,0.00017157,2]
[402945787,1769007043447,-500.0,0.00017166,2]
[402945788,1769007043456,-151.0,0.0001717,2]
[402945789,1769007043465,-500.0,0.00017173,2]
[402945790,1769007043474,-500.0,0.00017173,2]
[402945791,1769007043483,-500.0,0.00017173,2]
[402945792,1769007043492,-279.18333591,0.00017173,2]
[402945793,1769007043501,-500.94467747,0.00017173,2]
[402945794,1769007043510,-167.87587796,0.00017173,2]
[402945795,1769007043519,-500.0,0.00017173,2]
[402945796,1769007043528,-500.0,0.00017173,2]
[402945797,1769007043537,-500.0,0.00017173,2]
[402945798,1769007043546,-500.0,0.00017173,2]
[402945799,1769007043559,-500.0,0.00017173,2]
[402945800,1769007043568,-500.0,0.00017173,2]
[402945801,1769007043578,-500.0,0.00017173,2]
[402945802,1769007043588,-166.15547505,0.00017173,2]
[402945803,1769007043597,-500.24354149,0.00017173,2]
[402945804,1769007043606,-500.0,0.00017173,2]
[402945805,1769007043616,-500.0,0.00017173,2]
[402945806,1769007043625,-500.0,0.00017173,2]
[402945807,1769007043635,-500.0,0.00017173,2]
[402945808,1769007043644,-500.54717654,0.00017173,2]
[402945809,1769007043653,-500.0,0.00017173,2]
[402945810,1769007043663,-162.82594348,0.00017173,2]
[402945811,1769007043672,-500.0,0.00017173,2]
[402945812,1769007043681,-500.0,0.00017173,2]
[402945813,1769007043691,-500.36019469,0.00017173,2]
[402945814,1769007043700,-500.44081703,0.00017173,2]
[402945815,1769007043709,-500.0,0.00017173,2]
[402945816,1769007043718,-500.0,0.00017173,2]
[402945817,1769007043727,-500.0,0.00017173,2]
[402945818,1769007043736,-500.0,0.00017173,2]
[402945819,1769007043746,-163.65383635,0.00017173,2]
[402945820,1769007043759,-169.41492416,0.00017173,2]
[402945821,1769007043770,-500.0,0.00017173,2]
[402945822,1769007043781,-217.33264691,0.00017173,2]
[402945823,1769007043791,-500.53278225,0.00017173,2]
[402945824,1769007043800,-500.0,0.00017173,2]
[402945825,1769007043810,-166.57282596,0.00017173,2]
[402945826,1769007043820,-500.0,0.00017173,2]
[402945827,1769007043831,-500.0,0.00017173,2]
[402945828,1769007043841,-500.0,0.00017173,2]
[402945829,1769007043851,-2263.0,0.00017189,2]
[402945830,1769007043861,-500.0,0.00017212,2]
[402945831,1769007043872,-500.0,0.00017212,2]
[402945832,1769007043881,-181.7856256,0.00017226,2]
[402945833,1769007043891,-500.0,0.00017228,2]
[402945835,1769007043900,-500.0,0.00017228,2]
[402945837,1769007043910,-169.95,0.00017231,2]
[402945839,1769007043919,-2263.0,0.00017253,2]
[402945842,1769007043929,-2263.0,0.00017257,2]
[402945845,1769007043938,-500.0,0.00017267,2]
[402945848,1769007043947,-500.0,0.00017267,2]
[402945852,1769007043961,-500.12560695,0.00017273,2]
[402945854,1769007043972,-500.0,0.00017273,2]
[402945856,1769007043981,-500.73381826,0.00017273,2]
[402945858,1769007043991,-500.0,0.00017273,2]
[402945860,1769007044001,-500.79549494,0.00017273,2]
[402945862,1769007044010,-500.0,0.00017273,2]
[402945864,1769007044020,-500.0,0.00017273,2]
[402945866,1769007044030,-159.96427776,0.00017273,2]
[402945869,1769007044040,-500.0,0.00017273,2]
[402945871,1769007044049,-500.15189466,0.00017273,2]
[402945873,1769007044059,-500.0,0.00017273,2]
[402945874,1769007044068,-257.99612183,0.00017273,2]
[402945876,1769007044078,-586.66357325,0.00017273,2]
[402945877,1769007044087,-500.0,0.00017273,2]
[402945879,1769007044097,-550.70733566,0.00017273,2]
[402945881,1769007044107,-500.0,0.00017273,2]
[402945883,1769007044117,-500.0,0.00017273,2]
[402945886,1769007044126,-500.0,0.00017273,2]
[402945887,1769007044136,-500.0,0.00017273,2]
[402945890,1769007044146,-500.0,0.00017283,2]
[402945892,1769007044159,-500.0,0.00017283,2]
[402945894,1769007044168,-22761.81188579,0.000173,2]
[402945896,1769007044177,-168.0,0.00017322,2]
[402945898,1769007044186,-229.09047259,0.00017322,2]
[402945900,1769007044195,-500.0,0.00017337,2]
[402945902,1769007044205,-500.0,0.00017337,2]
[402945904,1769007044214,-500.0,0.00017392,2]
[402945906,1769007044224,-500.0,0.00017392,2]
[402945908,1769007044233,-168.0,0.00017393,2]
[402945909,1769007044242,-1214.78,0.00017424,2]
[402945911,1769007044251,-500.0,0.00017424,2]
[402945913,1769007044261,-500.0,0.00017447,2]
[402945915,1769007044271,-500.0,0.00017447,2]
[402945917,1769007044280,-181.7856256,0.0001745,2]
[402945919,1769007044290,-22761.81188579,0.0001745,2]
[402945921,1769007044299,-191.75189204,0.00017464,6]
[402945923,1769007044309,-500.0,0.00017499,2]
[402945925,1769007044318,-391.13615638,0.00017499,2]
[402945927,1769007044328,-521.74793843,0.00017499,2]
[402945929,1769007044338,-500.0,0.00017502,2]
[402945931,1769007044350,-500.0,0.00017502,2]
[402945933,1769007044359,-261.12,0.00017527,2]
[402945935,1769007044369,-500.0,0.00017557,2]
[402945938,1769007044379,-500.0,0.00017557,2]
[402945940,1769007044388,-500.0,0.00017562,2]
[402945942,1769007044398,-159.74,0.00017577,2]
[402945943,1769007044407,-181.08010149,0.00017592,2]
[402945945,1769007044417,-553.64373807,0.00017592,2]
[402945947,1769007044426,-201.93286099,0.00017592,2]
[402945950,1769007044436,-151.0,0.00017592,2]
[402945951,1769007044445,-800.93,0.00017597,2]
[402945953,1769007044455,-1000.0,0.00017599,2]
[402945956,1769007044465,-22761.81188579,0.000176,2]
[402945958,1769007044474,-352.0,0.00017608,2]
[402945960,1769007044484,-500.0,0.00017611,2]
[402945962,1769007044493,-500.0,0.00017611,2]
[402945964,1769007044503,-168.0,0.0001765,2]
[402945966,1769007044512,-252.00080963,0.00017666,2]
[402945968,1769007044521,-500.0,0.00017666,2]
[402945969,1769007044531,-181.7856256,0.00017675,2]
[402945972,1769007044541,-1214.78,0.00017698,2]
[402945974,1769007044550,-500.0,0.00017698,2]
[402945976,1769007044560,-158.23,0.00017701,2]
[402945978,1769007044569,-1000.0,0.0001771,2]
[402945980,1769007044580,-500.0,0.00017714,2]
[402945981,1769007044590,-1000.0,0.00017716,2]
[402945984,1769007044601,-545.74415025,0.0001772,2]
[402945999,1769007044890,-500.0,0.0001772,2]
[402946000,1769007044901,-500.0,0.0001772,2]
[402946001,1769007044911,-1006.42593625,0.00017721,2]
[402946002,1769007044921,-1000.0,0.00017721,2]
[402946003,1769007044931,-1000.0,0.00017721,2]
[402946005,1769007044942,-1000.0,0.00017721,2]
[402946006,1769007044951,-1000.0,0.00017721,2]
[402946007,1769007044961,-1000.0,0.00017721,2]
[402946008,1769007044970,-500.50663341,0.00017721,2]
[402946010,1769007044980,-837.2193742,0.00017721,2]
[402946012,1769007044989,-1001.85923341,0.00017721,2]
[402946014,1769007044998,-512.65188463,0.00017721,2]
[402946016,1769007045008,-1004.22603028,0.00017721,2]
[402946019,1769007045018,-700.78433745,0.00017721,2]
[402946021,1769007045028,-1000.0,0.00017721,2]
[402946023,1769007045037,-1000.0,0.00017721,2]
[402946025,1769007045046,-1000.0,0.00017721,2]
[402946027,1769007045056,-1000.0,0.00017721,2]
[402946029,1769007045065,-500.67790697,0.00017721,2]
[402946031,1769007045074,-1000.0,0.00017721,2]
[402946032,1769007045083,-500.47917453,0.00017721,2]
[402946035,1769007045093,-1000.0,0.00017721,2]
[402946037,1769007045103,-500.0,0.00017721,2]
[402946039,1769007045112,-1000.0,0.00017721,2]
[402946041,1769007045121,-500.0,0.00017721,2]
[402946043,1769007045131,-561.99653252,0.00017729,2]
[402946045,1769007045140,-500.0,0.00017729,2]
[402946046,1769007045149,-296.84135842,0.00017729,2]
[402946048,1769007045158,-174.04894204,0.00017729,2]
[402946051,1769007045168,-271.38033165,0.00017729,2]
[402946052,1769007045179,-500.0,0.00017729,2]
[402946054,1769007045188,-500.0,0.00017729,2]
[402946057,1769007045198,-150.29537123,0.00017729,2]
[402946058,1769007045207,-589.37448423,0.00017729,2]
[402946060,1769007045216,-500.0,0.00017729,2]
[402946062,1769007045226,-500.0,0.00017729,2]
[402946065,1769007045235,-500.0,0.00017729,2]
[402946067,1769007045245,-150.0,0.00017731,2]
[402946069,1769007045254,-1000.0,0.00017738,2]
[402946071,1769007045263,-150.0,0.0001774,2]
[402946072,1769007045273,-1000.0,0.00017742,2]
[402946073,1769007045282,-1000.0,0.00017743,2]
[402946074,1769007045292,-22761.81188579,0.0001775,2]
[402946075,1769007045301,-1000.0,0.00017753,2]
[402946077,1769007045311,-679.29564048,0.00017755,2]
[402946079,1769007045321,-1000.0,0.00017756,2]
[402946082,1769007045332,-1000.0,0.00017757,2]
[402946084,1769007045341,-1000.0,0.00017766,2]
[402946086,1769007045350,-1000.0,0.00017771,2]
[402946087,1769007045359,-500.0,0.00017775,2]
[402946089,1769007045370,-500.0,0.00017775,2]
[402946091,1769007045379,-500.0,0.00017776,2]
[402946094,1769007045389,-3743.0,0.00017782,2]
[402946095,1769007045399,-1000.0,0.00017784,2]
[402946098,1769007045409,-1000.0,0.00017804,2]
[402946100,1769007045420,-150.0,0.00017808,2]
[402946102,1769007045430,-500.0,0.00017808,2]
[402946103,1769007045440,-1000.0,0.00017813,2]
[402946105,1769007045449,-500.0,0.00017821,2]
[402946107,1769007045458,-500.0,0.00017821,2]
[402946109,1769007045468,-231.45242292,0.00017821,2]
[402946111,1769007045478,-500.0,0.00017821,2]
[402946113,1769007045488,-1000.0,0.00017821,2]
[402946115,1769007045497,-500.0,0.00017821,2]
[402946117,1769007045507,-1000.0,0.00017827,2]
[402946119,1769007045516,-500.0,0.00017831,2]
[402946121,1769007045526,-150.0,0.00017839,2]
[402946123,1769007045535,-247.18943063,0.00017857,2]
[402946125,1769007045544,-150.0,0.00017863,2]
[402946127,1769007045554,-500.0,0.00017863,2]
[402946129,1769007045564,-1000.0,0.00017863,2]
[402946131,1769007045574,-1000.0,0.00017866,2]
[402946133,1769007045586,-1000.0,0.00017872,2]
[402946135,1769007045595,-1000.0,0.00017878,2]
[402946137,1769007045604,-474.74170161,0.00017885,2]
[402946139,1769007045613,-150.0,0.00017894,2]
[402946142,1769007045623,-181.7856256,0.000179,2]
[402946144,1769007045633,-22761.81188579,0.000179,2]
[402946146,1769007045642,-195.92069658,0.000179,3]
[402946148,1769007045651,-14875.5486131,0.000179,2]
[402946150,1769007045660,-1000.0,0.000179,2]
[402946152,1769007045670,-741.7627,0.000179,2]
[402946153,1769007045679,-10382.0,0.000179,2]
[402946154,1769007045688,-1000.0,0.00017905,2]
[402946155,1769007045697,-200.0,0.00017909,2]
[402946156,1769007045706,-169.95,0.00017914,2]
[402946157,1769007045715,-200.49238854,0.00017918,2]
[402946158,1769007045726,-503.51325329,0.00017918,2]
[402946159,1769007045735,-1000.0,0.00017919,2]
[402946160,1769007045744,-1000.0,0.00017925,2]
[402946161,1769007045754,-1000.0,0.00017926,2]
[402946162,1769007045763,-1000.0,0.00017933,2]
[402946163,1769007045774,-1000.0,0.0001794,2]
[402946164,1769007045785,-1000.0,0.00017953,2]
[402946165,1769007045795,-150.0,0.00017959,2]
[402946166,1769007045804,-1000.0,0.0001797,2]
[402946167,1769007045815,-500.0,0.0001797,2]
[402946168,1769007045824,-1000.0,0.0001797,2]
[402946169,1769007045834,-500.0,0.0001797,2]
[402946170,1769007045844,-1000.0,0.0001797,2]
[402946171,1769007045855,-694.631145,0.0001797,2]
[402946172,1769007045865,-1321.57411122,0.0001797,2]
[402946173,1769007045875,-1214.78,0.00017972,2]
[402946174,1769007045884,-500.0,0.00017972,2]
[402946175,1769007045893,-15055.0,0.00017973,2]
[402946176,1769007045902,-30553.0,0.00017973,2]
[402946177,1769007045912,-150.0,0.00017973,2]
[402946178,1769007045922,-150.0,0.00017973,2]
[402946179,1769007045931,-150.0,0.00017979,2]
[402946180,1769007045941,-261.12,0.00017981,2]